{"text_format":"1","workbook":"xlsx","n_sheets":12,"sheets":["1. Forside","2. Samlet prisloft","3. Driftsomkostninger","4. Historiske investeringer","5. Gennemførte investeringer","6. Korrektion investeringer","7. Planlagte investeringer","8. 1-1 omkostninger","9. Miljø- og servicemål","10. Nettofinansielle poster","11. Over- eller underdækning","12. Kontrol med indtægtsrammen"],"not_rendered":{"charts":0,"images":0,"macros":1,"external_links":0,"defined_names":0,"comments":0,"pivot_tables":0},"unopened":[],"bounds":{"document_bytes":16777216,"sheet_cells":100000,"rows_first":2000,"rows_last":500,"rows_between":2000,"halvings":0,"cell_chars":16384,"cell_head_chars":4096},"cells_cut":0,"cells_raw":0,"read":"whole","date_system":"1900"}

{"sheet":"1. Forside","index":0,"n_rows":26,"n_cols":4,"rows_kept":26,"cut":false,"hidden":false,"merged":[[20,3,20,5],[19,3,19,5],[18,3,18,5],[7,3,7,5],[12,3,12,5],[15,3,15,5],[16,3,16,5],[17,3,17,5],[25,3,25,5],[24,3,24,5],[23,3,23,5],[22,3,22,5],[21,3,21,5]]}
["Vestforsyning Vand A/S"]
[]
[]
[]
[]
[]
[]
[null,null,null,"Bilag A"]
[]
[]
[]
[]
[null,null,null,"Indholdsfortegnelse"]
[]
[]
[null,null,"Fane nr. 2","Samlet prisloft "]
[null,null,"Fane nr. 3","Driftsomkostninger"]
[null,null,"Fane nr. 4","Historiske investeringer "]
[null,null,"Fane nr. 5","Gennemførte investeringer"]
[null,null,"Fane nr. 6","Korrektion investeringer"]
[null,null,"Fane nr. 7","Planlagte investeringer"]
[null,null,"Fane nr. 8","1:1 omkostninger"]
[null,null,"Fane nr. 9","Miljø- og servicemål"]
[null,null,"Fane nr. 10","Nettofinansielle poster"]
[null,null,"Fane nr. 11","Over- eller underdækning"]
[null,null,"Fane nr. 12","Kontrol med indtægtsrammen og oversigt over ekstraordinære effektiviseringsgevinster"]

{"sheet":"2. Samlet prisloft","index":1,"n_rows":38,"n_cols":6,"rows_kept":38,"cut":false,"hidden":false,"merged":[[3,1,3,5]]}
[{"$f":"'1. Forside'!A1","v":"Vestforsyning Vand A/S"}]
[]
[]
[null,"Fane 2. Samlet prisloft for 2015"]
[]
[null,"Driftsomkostninger"]
[null,"Driftsomkostninger i prisloftet for 2014",{"$f":"'3. Driftsomkostninger'!C20","v":15030771.630000001},"kr."]
[null,"Bortfald af væsentlige omkostninger",{"$f":"-'3. Driftsomkostninger'!C16","v":0},"kr."]
[null,"Korrektion for prisudviklingen 2014-2015",{"$f":"'3. Driftsomkostninger'!C22","v":12024.617304000001},"kr."]
[null,"Forhøjelse til effektivt niveau iht. benchmarkingen",{"$f":"'3. Driftsomkostninger'!C28","v":0},"kr."]
[null,"Korrektion for generelt effektiviseringskrav",{"$f":"-'3. Driftsomkostninger'!C34","v":-66135.395172000004},"kr."]
[null,"Korrektion for individuelt effektiviseringskrav",{"$f":"-'3. Driftsomkostninger'!C43","v":0},"kr."]
[null,"Driftsomkostninger i alt",{"$f":"SUM(C7:C12)","v":14976660.852132},"kr.",{"$f":"C13","v":14976660.852132}," kr."]
[null,"Investeringer"]
[null,"Tillæg for historiske investeringer",{"$f":"'4. Historiske investeringer'!C9","v":20292534.384658251},"kr."]
[null,"Tillæg for gennemførte investeringer i 2011-2013",{"$f":"'5. Gennemførte investeringer'!F33","v":5026560.6583333323},"kr."]
[null,"Korrektion af tillæg for planlagte investeringer vedrørende 2013  ",{"$f":"'6. Korrektion investeringer'!C10","v":345954.48},"kr."]
[null,"Tillæg for planlagte investeringer i 2014 og 2015",{"$f":"'7. Planlagte investeringer'!F24","v":911260},"kr."]
[null,"Investeringstillæg i alt",{"$f":"SUM(C15:C18)","v":26576309.522991583},"kr.",{"$f":"C19","v":26576309.522991583}," kr."]
[null,"Øvrige omkostninger mv."]
[null,"Tillæg for 1:1 omkostninger i 2015",{"$f":"'8. 1-1 omkostninger'!C9","v":97000},"kr."]
[null,"Tillæg for afgift for ledningsført vand i 2015",{"$f":"'8. 1-1 omkostninger'!C14","v":22068000},"kr."]
[null,"Tillæg vedr. revisorerklæringer og DANVA/FVD-kontingent",{"$f":"'8. 1-1 omkostninger'!C20","v":179183},"kr."]
[null,"Korrektion ift. faktiske 1:1 omkostninger i 2013",{"$f":"'8. 1-1 omkostninger'!C26","v":-383794},"kr."]
[null,"Tillæg for driftsomkostninger til miljø- og servicemål i 2015",{"$f":"'9. Miljø- og servicemål'!C9","v":683000},"kr."]
[null,"Korrektion ift. faktiske driftsomkostninger til miljø- og servicemål i 2013",{"$f":"'9. Miljø- og servicemål'!C16","v":69296},"kr."]
[null,"Tillæg/fradrag for nettofinansielle poster i 2015",{"$f":"'10. Nettofinansielle poster'!C9","v":3426000},"kr."]
[null,"Korrektion ift. faktiske nettofinansielle poster i 2013",{"$f":"'10. Nettofinansielle poster'!C16","v":-5777987},"kr."]
[null,"Øvrige omkostninger mv. i alt",{"$f":"SUM(C21:C28)","v":20360698},"kr.",{"$f":"C29","v":20360698}," kr."]
[null,"Historisk over- eller underdækning"]
[null,"Tillæg/fradrag for over- eller underdækning til og med 2010",{"$f":"'11. Over- eller underdækning'!C11","v":222082.49735449735},"kr.",{"$f":"C31","v":222082.49735449735}," kr."]
[null,"Korrektion i forhold til tidligere indtægtsramme "]
[null,"Korrektion for overholdelse af indtægtsramme i prisloft 2013",{"$f":"'12. Kontrol med indtægtsrammen'!E27","v":-393.9837972894311},"kr.",{"$f":"C33","v":-393.9837972894311}," kr."]
[null,"Samlet prisloft"]
[null,"Indtægtsramme i 2015 ",null,null,{"$f":"SUM(E13:E33)","v":62135356.888680793}," kr."]
[null,"Debiteret vandmængde i 2013",null,null,3564054," m3"]
[null,"Prisloft 2015",null,null,{"$f":"E35/E36","v":17.433898837862948}," kr./m3"]
[null,"Prisloft 2015 ekskl. afgift for ledningsført vand ",null,null,{"$f":"(E35-C22)/E36","v":11.242073461479762}," kr./m3"]

{"sheet":"3. Driftsomkostninger","index":2,"n_rows":43,"n_cols":4,"rows_kept":43,"cut":false,"hidden":false,"merged":[[3,1,3,3]]}
[{"$f":"'1. Forside'!A1","v":"Vestforsyning Vand A/S"}]
[]
[]
[null,"Fane 3. Driftsomkostninger "]
[]
[null,"Driftsomkostningerne i prisloftet for 2014"]
[null,"Korrigerede driftsomkostninger i prisloftet for 2013 (DOiPL 2013)",14808642,"kr."]
[null,"Prisfremskrivning 1,5 pct.",{"$f":"0.015*SUM(C7:C7)","v":222129.63},"kr."]
[null,"Generelt effektiviseringskrav (0 pct.)",0,"kr."]
[null,"Individuelt effektiviseringskrav ",0,"kr."]
[null,"Driftsomkostningerne i prisloftet for 2014 (DOiPL 2014)",{"$f":"SUM(C7:C10)","v":15030771.630000001},"kr."]
[]
[]
[null,"Korrektion for forventet bortfald af væsentlige omkostninger"]
[null,"Selskabets indberettede bortfald af væsentlige omkostninger inden 2015",0,"kr."]
[null,"Korrektion for forventet bortfald ",{"$f":"SUM(C15:C15)","v":0},"kr."]
[]
[]
[null,"Korrektion for prisudviklingen fra 2014-2015"]
[null,"Driftsomkostningerne i prisloftet for 2014",{"$f":"C11-C16","v":15030771.630000001},"kr."]
[null,"Prisudvikling 2014 - 2015 ",0.08,"pct."]
[null,"Korrektion for prisudvikling",{"$f":"C20*(C21/100)","v":12024.617304000001},"kr."]
[]
[]
[null,"Eventuel forhøjelse til effektivt niveau iht. benchmarkingen"]
[null,"Selskabets effektive driftsomkostninger iht. benchmarkingen",14954115,"kr."]
[null,"Selskabets pristalskorrigerede driftsomkostninger i 2015-niveau",{"$f":"C20+C22","v":15042796.247304},"kr."]
[null,"Eventuel forhøjelse til effektivt niveau",{"$f":"IF(C27>C26,0,C26-C27)","v":0},"kr."]
[]
[]
[null,"Korrektion for generelt effektiviseringskrav"]
[null,"Driftsomkostningerne i prisloftet for 2014",{"$f":"C20","v":15030771.630000001},"kr. "]
[null,"Generelt effektiviseringskrav ",0.44,"pct."]
[null,"Endeligt generelt effektiviseringskrav",{"$f":"C32*(C33/100)","v":66135.395172000004},"kr. "]
[]
[]
[null,"Korrektion for individuelt effektiviseringskrav"]
[null,"Rå effektiviseringspotentiale",84172,"kr."]
[null,"Effektiviseringspotentiale efter eventuel korrektion for særlige forhold",76657,"kr."]
[null,"Effektiviseringspotentiale efter forsigtighedshensyn",0,"kr."]
[null,"Effektiviseringspotentiale efter eventuel korrektion for sammensætning af signifikante costdrivere",0,"kr. "]
[null,"Umiddelbart effektiviseringskrav",{"$f":"C41/4","v":0},"kr."]
[null,"Endeligt individuelt effektiviseringskrav",{"$f":"IF(C42>0.05*C20,0.05*C20,IF(C42<0.01*C20,0,C42))","v":0},"kr. "]

{"sheet":"4. Historiske investeringer","index":3,"n_rows":9,"n_cols":4,"rows_kept":9,"cut":false,"hidden":false,"merged":[[3,1,3,2]]}
[{"$f":"'3. Driftsomkostninger'!A1","v":"Vestforsyning Vand A/S"}]
[]
[]
[null,"Fane 4. Historiske investeringer "]
[]
[null,"Tillæg for historiske investeringer "]
[null,"Værdi af selskabets materielle anlægsaktiver pr. 1. januar 2010",762310897.26092744,"kr."]
[null,"Den årlige standardafskrivning på de materielle anlægsaktiver iht. POLKA",20292534.384658251,"kr."]
[null,"Tillæg i alt i 2015",{"$f":"C8","v":20292534.384658251},"kr."]

{"sheet":"5. Gennemførte investeringer","index":4,"n_rows":33,"n_cols":7,"rows_kept":33,"cut":false,"hidden":false,"merged":[[3,1,3,5],[6,5,6,6]]}
[{"$f":"'4. Historiske investeringer'!A1","v":"Vestforsyning Vand A/S"}]
[]
[]
[null,"Fane 5. Gennemførte investeringer i 2010 - 2013 "]
[]
[null,"Tillæg for gennemførte investeringer i 2013"]
[null," Beskrivelse af investeringen   ","Årstal ","Std. levetid (år)   "," Anskaffelses-pris (kr.)","Afskrivning "]
[null,"Elanlæg - vandværk",2013,25,196215,{"$f":"E8/D8","v":7848.6},"kr."]
[null,"Etageareal vandbehandlingsbygning",2013,75,80615,1074.8666666666666,"kr."]
[null,"SRO-anlæg, vandværk",2013,10,331588,33158.800000000003,"kr."]
[null,"Udpumpningsanlæg, rentvandspumper på vandværk",2013,25,439582,17583.28,"kr."]
[null,"Ø 250 mm < Ledningsnet = Ø 500mm",2013,75,473044,6307.2533333333331,"kr."]
[null,"Ø110 mm < Ledningsnet = Ø 250 mm",2013,75,1607750,{"$f":"E13/D13","v":21436.666666666668},"kr."]
[null,"Pumpestation (inkl. evt. hydrofor)/trykforøger, Konstruktioner",2013,50,233351,4667.0200000000004,"kr."]
[null,"Pumpestation (inkl. evt. hydrofor)/trykforøger, SRO",2013,10,94923,9492.2999999999993,"kr."]
[null,"Pumpestation (inkl. evt. hydrofor)/trykforøger, Mek./EL",2013,25,41528,1661.12,"kr."]
[null,"Ø 250 mm < Ledningsnet = Ø 500mm",2013,75,42051,560.67999999999995,"kr."]
[null,"Ø110 mm < Ledningsnet = Ø 250 mm",2013,75,218021,2906.9466666666667,"kr."]
[null,"Ø 50mm < Ledningsnet = Ø110 mm",2013,75,562686,7502.48,"kr."]
[null,"Stik på ledningsnet, Konstruktioner",2013,75,634518,8460.24,"kr."]
[null,"Stik på ledningsnet, Konstruktioner",2013,75,930815,12410.866666666667,"kr."]
[null,"Ø110 mm < Ledningsnet = Ø 250 mm",2013,75,930815,12410.866666666667,"kr."]
[null,"Ø 50mm < Ledningsnet = Ø110 mm",2013,75,172840,2304.5333333333333,"kr."]
[null,"Elanlæg - vandværk",2013,25,50000,2000,"kr."]
[null,"SRO-anlæg, vandværk",2013,10,186484,18648.400000000001,"kr."]
[null,"Råvandsstation komplet montering og boringshus/tørbrønd",2013,30,703499,23449.966666666667,"kr."]
[null,"Boring (inkl. etablering, forerør, filter og prøvepumpning)",2013,30,337572,11252.4,"kr."]
[null,"Stik på ledningsnet, Konstruktioner",2013,75,499458,6659.44,"kr."]
[null,"Afregningsmålere, elektroniske = Ø 110mm (Qn 10)",2013,10,6168525,616852.5,"kr."]
[null,"Ø 50mm < Ledningsnet = Ø110 mm",2013,75,685351,9138.0133333333342,"kr."]
[null,"Tillæg for 2013 ",null,null,null,{"$f":"SUM(F8:F30)","v":837787.24},"kr."]
[null,"Tillæg for 2010 - 2012",null,null,null,4188773.4183333325,"kr."]
[null,"Samlet tillæg for gennemførte investeringer",null,null,null,{"$f":"F31+F32","v":5026560.6583333323},"kr."]

{"sheet":"6. Korrektion investeringer","index":5,"n_rows":10,"n_cols":4,"rows_kept":10,"cut":false,"hidden":false,"merged":[[3,1,3,3]]}
[{"$f":"'5. Gennemførte investeringer'!A1","v":"Vestforsyning Vand A/S"}]
[]
[]
[null,"Fane 6. Korrektion af tillæg for planlagte investeringer"]
[]
[null,"Korrektion af tillæg for planlagte investeringer vedr. 2013"]
[null,"Tillæg for planlagte investeringer i 2013 i prisloft 2013",662493,"kr."]
[null,"Tillæg for planlagte investeringer i 2013 i prisloft 2014",667127,"kr."]
[null,"Selskabets faktiske afskrivninger på gennemførte investeringer i 2013",{"$f":"'5. Gennemførte investeringer'!F31","v":837787.24},"kr."]
[null,"Korrektion af tillæg for planlagte investeringer vedr. 2013",{"$f":"C9-C7+C9-C8","v":345954.48},"kr."]

{"sheet":"7. Planlagte investeringer","index":6,"n_rows":24,"n_cols":7,"rows_kept":24,"cut":false,"hidden":false,"merged":[[6,5,6,6],[3,1,3,6]]}
[{"$f":"'6. Korrektion investeringer'!A1","v":"Vestforsyning Vand A/S"}]
[]
[]
[null,"Fane 7. Planlagte investeringer "]
[]
[null,"Tillæg for planlagte investeringer i 2014 og 2015"]
[null,"Beskrivelse af investeringen   ","Årstal ","Std. levetid (år)   ","Anskaffelses-pris (kr.)   ","Afskrivning"]
[null,"Etageareal vandbehandlingsbygning",2014,75,500000,{"$f":"E8/D8","v":6666.666666666667},"kr."]
[null,"Boring (inkl. etablering, forerør, filter og prøvepumpning)",2014,30,600000,{"$f":"E9/D9","v":20000},"kr."]
[null,"Boring (inkl. etablering, forerør, filter og prøvepumpning)",2014,30,200000,{"$f":"E10/D10","v":6666.666666666667},"kr."]
[null,"Ø 50mm < Ledningsnet = Ø110 mm",2014,75,3060000,40800,"kr."]
[null,"Ø 50mm < Ledningsnet = Ø110 mm",2014,75,797000,10626.666666666666,"kr."]
[null,"Stik på ledningsnet, Konstruktioner",2014,75,656000,8746.6666666666661,"kr."]
[null,"Afregningsmålere, elektroniske = Ø 110mm (Qn 10)",2014,10,5429000,542900,"kr."]
[null,"Boring (inkl. etablering, forerør, filter og prøvepumpning)",2015,30,600000,20000,"kr."]
[null,"Boring (inkl. etablering, forerør, filter og prøvepumpning)",2015,30,2200000,73333.333333333328,"kr."]
[null,"Ø 250 mm < Ledningsnet = Ø 500mm",2015,75,2500000,33333.333333333336,"kr."]
[null,"Ø 50mm < Ledningsnet = Ø110 mm",2015,75,3121000,41613.333333333336,"kr."]
[null,"Ø 50mm < Ledningsnet = Ø110 mm",2015,75,797000,10626.666666666666,"kr."]
[null,"Stik på ledningsnet, Konstruktioner",2015,75,656000,8746.6666666666661,"kr."]
[null,"Afregningsmålere, elektroniske = Ø 110mm (Qn 10)",2015,10,872000,87200,"kr."]
[null,"Tillæg for 2014",null,null,null,{"$f":"SUMIF(C8:C21,\"2014\",F8:F21)","v":636406.66666666674},"kr."]
[null,"Tillæg for 2015",null,null,null,{"$f":"SUMIF(C8:C21,\"2015\",F8:F21)","v":274853.33333333331},"kr."]
[null,"Tillæg i alt",null,null,null,{"$f":"F22+F23","v":911260},"kr."]

{"sheet":"8. 1-1 omkostninger","index":7,"n_rows":26,"n_cols":4,"rows_kept":26,"cut":false,"hidden":false,"merged":[[3,1,3,3],[16,1,16,3],[22,1,22,3]]}
[{"$f":"'7. Planlagte investeringer'!A1","v":"Vestforsyning Vand A/S"}]
[]
[]
[null,"Fane 8. 1:1 omkostninger"]
[]
[null,"Tillæg for budgetterede 1:1 omkostninger i 2015"]
[null,"Betaling til Forsyningssekretariatet",33000,"kr."]
[null,"Ejendomsskatter",64000,"kr."]
[null,"Tillæg i alt ",{"$f":"SUM(C7:C8)","v":97000},"kr."]
[]
[]
[null,"Tillæg for afgift for ledningsført vand i 2015"]
[null,"Afgift for ledningsført vand (6,53 kr./m3)",22068000,"kr."]
[null,"Tillæg i alt ",{"$f":"SUM(C13:C13)","v":22068000},"kr."]
[]
[]
[null,"Tillæg for budgetterede nødvendige udgifter til revisorerklæringer samt ordinært medlemskab af DANVA og FVD i 2015"]
[null,"Betaling for ordinært medlemskab af DANVA/FVD",159936,"kr."]
[null,"Betaling for revisorerklæringer",19247,"kr."]
[null,"Tillæg i alt ",{"$f":"SUM(C18:C19)","v":179183},"kr."]
[]
[]
[null,"Korrektion af tillæg for faktiske 1:1 omkostninger (inkl. afgift for ledningsført vand, revisorerklæringer og ordinært medlemskab af DANVA/FVD) i 2013"]
[null,"Selskabets faktiske 1:1 omkostninger mv. i 2013, jf. reguleringsregnskabet",21946111,"kr."]
[null,"Tillæg for budgetterede 1:1 omkostninger mv. i prisloft 2013",22329905,"kr."]
[null,"Korrektion af tillæg for budgetterede 1:1 omkostninger mv. i 2013",{"$f":"C24-C25","v":-383794},"kr."]

{"sheet":"9. Miljø- og servicemål","index":8,"n_rows":16,"n_cols":4,"rows_kept":16,"cut":false,"hidden":false,"merged":[[3,1,3,3]]}
["Vestforsyning Vand A/S"]
[]
[]
[null,"Fane 9. Driftsomkostninger til miljø- og servicemål "]
[]
[null,"Tillæg for budgetterede driftsomkostninger til miljø- og servicemål i 2015"]
[null,"Dokumenteret Drikkevandssikkerhed",397000,"kr."]
[null,"Fjernaflæsnin/Overvågning af kunder",286000,"kr."]
[null,"Tillæg i alt",{"$f":"SUM(C7:C8)","v":683000},"kr."]
[]
[]
[]
[null,"Korrektion af tillæg for faktiske driftsomkostninger til miljø- og servicemål i 2013"]
[null,"Selskabets faktiske driftsomkostninger til miljø- og servicemål i 2013, jf. reguleringsregnskabet",764296,"kr."]
[null,"Tillæg for budgetterede driftsomkostninger til miljø- og servicemål i prisloft 2013",695000,"kr."]
[null,"Korrektion af tillæg for budgetterede driftsomkostninger til miljø- og servicemål i 2013",{"$f":"C14-C15","v":69296},"kr."]

{"sheet":"10. Nettofinansielle poster","index":9,"n_rows":16,"n_cols":4,"rows_kept":16,"cut":false,"hidden":false,"merged":[[3,1,3,3]]}
[{"$f":"'2. Samlet prisloft'!A1","v":"Vestforsyning Vand A/S"}]
[]
[]
[null,"Fane 10. Nettofinansielle poster"]
[]
[null,"Tillæg for budgetterede nettofinansielle poster i 2015"]
[null,"Budgetterede renteudgifter og gebyrer i 2015",3621000,"kr."]
[null,"Budgetterede renteindtægter i 2015",195000,"kr."]
[null,"Tillæg/fradrag i alt",{"$f":"C7-C8","v":3426000},"kr."]
[]
[]
[]
[null,"Korrektion af tillæg for faktiske nettofinansielle poster i 2013"]
[null,"Selskabets faktiske nettofinansielle poster i 2013, jf. reguleringsregnskabet",-2087987,"kr."]
[null,"Tillæg for budgetterede nettofinansielle poster i prisloft 2013",3690000,"kr."]
[null,"Korrektion af tillæg for budgetterede nettofinansielle poster i 2013",{"$f":"C14-C15","v":-5777987},"kr."]

{"sheet":"11. Over- eller underdækning","index":10,"n_rows":11,"n_cols":4,"rows_kept":11,"cut":false,"hidden":false,"merged":[[3,1,3,3]]}
[{"$f":"'1. Forside'!A1","v":"Vestforsyning Vand A/S"}]
[]
[]
[null,"Fane 11. Over- eller underdækning til og med 2010"]
[]
[null,"Tillæg/fradrag for over- eller underdækning til og med 2010"]
[null,"Opgjort over- eller underdækning per 31. december 2010",897353,"kr."]
[null,"Heraf beløb indregnet i prislofterne for 2011 - 2014",-435141.98412698414,"kr."]
[null,"Endnu ikke indregnet over- eller underdækning",{"$f":"C7-C8","v":1332494.9841269841},"kr."]
[null,"Resterende indregningsperiode (fastsat i prisloftet for 2012)",6,"år"]
[null,"Tillæg/fradrag i alt",{"$f":"IF(C7=0,0,C9/C10)","v":222082.49735449735},"kr."]

{"sheet":"12. Kontrol med indtægtsrammen","index":11,"n_rows":38,"n_cols":12,"rows_kept":38,"cut":false,"hidden":false,"merged":[[3,1,3,5],[30,1,30,4],[5,1,5,5]]}
[{"$f":"'11. Over- eller underdækning'!A1","v":"Vestforsyning Vand A/S"}]
[]
[]
[null,"Fane 12. Korrektion for overholdelse af indtægtsrammen i prisloftet for 2013"]
[]
[null,"Samlet opgørelse vedrørende overholdelse af indtægtsrammen i prisloftet for 2013"]
[null,"Indtægtsramme i prisloftet for 2013",null,null,74162508.250252098,"kr."]
[null,"Ikke anvendt likviditet vedrørende investeringer i 2013"]
[null,"Tillæg for historiske investeringer ",20800958.234049387,"kr."]
[null,"Tillæg for gennemførte investeringer i 2011",2938964,"kr."]
[null,"Korrektion af tillæg for planlagte investeringer i 2011",1763187,"kr."]
[null,"Tillæg for planlagte investeringer i 2012 og 2013",1737793,"kr."]
[null,"Indtægter fra tilslutningsbidrag",1765000,"kr."]
[null,"Indtægter fra salg af anlægsaktiver",0,"kr."]
[null,"Erstatninger vedr. anlægsaktiver mv.",0,"kr."]
[null,"Ekstraordinær effektiviseringsgevinst anvendt til investeringer",0,"kr."]
[null,"Udgifter til investeringer",-3772000,"kr."]
[null,"Ikke anvendt likviditet vedr. investeringer i alt",{"$f":"SUM(C9:C17)","v":25233902.234049387},"kr.",{"$f":"IF(C18<0,0,-C18)","v":-25233902.234049387},"kr."]
[null,"Ekstraordinære effektiviseringsgevinster anvendt til takstnedsættelse"]
[null,"Ekstraordinær effektiviseringsgevinst anvendt til takstnedsættelse",0,"kr.",{"$f":"-C20","v":0},"kr."]
[null,"Korrektion af ikke opkrævet tillæg fra 2011 i prisloft 2013"]
[null,"Korrektion af ikke opkrævet tillæg fra 2011 i prisloft 2013",0,"kr.",{"$f":"-C22","v":0},"kr."]
[null,"Indtægter fra primære aktiviteter mv."]
[null,"Indtægter fra kubikmetertakster, faste takster, særbidrag, målergebyrer samt andre takster og gebyrer",48929000,"kr."]
[null,"Andre indtægter i prisloftåret, som selskabet har opnået i forbindelse med eller som følge af selskabets primære aktiviteter",0,"kr."]
[null,"Indtægter fra primære aktiviteter mv. i alt",{"$f":"SUM(C24:C25)","v":48929000},"kr.",{"$f":"-C26","v":-48929000},"kr."]
[null,"Tillæg/fradrag i prisloftet for 2015 i alt",null,null,{"$f":"E7+E18+E20+E22+E26","v":-393.9837972894311},"kr."]
[]
[]
[]
[null,"Oversigt over ekstraordinære effektiviseringsgevinster"]
[]
[null,null,2012,null,2013,null,2014,null,2015,null,2016]
[null,"Indhentet ekstraordinær effektiviseringsgevinst",58401,"kr.",83309,"kr.",null,"kr.",null,"kr.",null,"kr."]
[null,"Gevinst anvendt til investeringer",0,"kr.",0,"kr.",null,"kr.",null,"kr.",null,"kr."]
[null,"Gevinst anvendt til takstnedsættelse",0,"kr.",0,"kr.",null,"kr.",null,"kr.",null,"kr."]
[null,"Korrektion for  effektiviseringsgevinst der ikke er anvendt inden 4 år",0,"kr.",0,"kr.",null,"kr.",null,"kr.",{"$f":"IF(C38>SUM(E35:I36),C38-SUM(E35:I36),0)*-1","v":-58401},"kr."]
[null,"Resterende gevinst",{"$f":"C34-C35-C36","v":58401},"kr.",{"$f":"C38+E34-E35-E36","v":141710},"kr.",{"$f":"E38+G34-G35-G36","v":141710},"kr.",{"$f":"G38+I34-I35-I36","v":141710},"kr.",{"$f":"I38+K34-K35-K36+K37","v":83309},"kr."]